Workbook

Sheet Távhő Ökocímke Adatlap
A2: Távhő Ökocímke Adatlap
A3: Távhő Ökocímke igénylés azonosító száma | B3: MTÖ-2017-001 | D3: Kérjük a szürke mezők kitöltését, az adott mezőhöz tartozó megjegyzés figyelembevételével. | G3: A világos kék mezőket csak akkor kell módosítania, ha van pontosabb adata.
A4: Távhőszolgáltató neve | B4: XY
A5: Távhőrendszer megnevezése | B5: AB távhőrendszer
B6: S
A7: Hőforrás megnevezése | C7: A Fűtőmű | D7: B Fűtőmű | E7: C Fűtőmű | F7: D Fűtőmű | G7: E Fűtőmű | H7: F Fűtőmű | I7: G Fűtőmű | J7: H Fűtőmű | K7: I Fűtőmű | L7: J Fűtőmű | M7: K Fűtőmű | N7: L Fűtőmű | O7: M Fűtőmű | P7: N Fűtőmű
A8: Távhőtermelési technológia sorszáma (i) | C8: 9.Kapcsolt energiatermelés kombinált ciklusú erőművi blokkban | D8: - | E8: - | F8: - | G8: - | H8: - | I8: - | J8: - | K8: - | L8: - | M8: - | N8: - | O8: - | P8: -
A9: Felhasznált primerenergia fajtája | C9: Földgáz | D9: - | E9: - | F9: - | G9: - | H9: - | I9: - | J9: - | K9: - | L9: - | M9: - | N9: - | O9: - | P9: -
A10: Qi (GJ) | B10: =SUM(C10:P10) -> 40000 | C10: 40000
A11: ai | C11: =C10/$B$10 -> 1 | D11: =D10/$B$10 -> 0 | E11: =E10/$B$10 -> 0 | F11: 0 | G11: 0 | H11: 0 | I11: 0 | J11: 0 | K11: 0 | L11: 0 | M11: 0 | N11: 0 | O11: 0 | P11: 0
A12: ei | C12: =VLOOKUP(C$8,'1.táblázat'!$A$1:$B$16,2,FALSE) -> 0.54 | D12: =VLOOKUP(D$8,'1.táblázat'!$A$1:$B$16,2,FALSE) -> 0 | E12: =VLOOKUP(E$8,'1.táblázat'!$A$1:$B$16,2,FALSE) -> 0 | F12: =VLOOKUP(F$8,'1.táblázat'!$A$1:$B$16,2,FALSE) -> 0 | G12: =VLOOKUP(G$8,'1.táblázat'!$A$1:$B$16,2,FALSE) -> 0 | H12: =VLOOKUP(H$8,'1.táblázat'!$A$1:$B$16,2,FALSE) -> 0 | I12: =VLOOKUP(I$8,'1.táblázat'!$A$1:$B$16,2,FALSE) -> 0 | J12: =VLOOKUP(J$8,'1.táblázat'!$A$1:$B$16,2,FALSE) -> 0 | K12: =VLOOKUP(K$8,'1.táblázat'!$A$1:$B$16,2,FALSE) -> 0 | L12: =VLOOKUP(L$8,'1.táblázat'!$A$1:$B$16,2,FALSE) -> 0 | M12: =VLOOKUP(M$8,'1.táblázat'!$A$1:$B$16,2,FALSE) -> 0 | N12: =VLOOKUP(N$8,'1.táblázat'!$A$1:$B$16,2,FALSE) -> 0 | O12: =VLOOKUP(O$8,'1.táblázat'!$A$1:$B$16,2,FALSE) -> 0 | P12: =VLOOKUP(P$8,'1.táblázat'!$A$1:$B$16,2,FALSE) -> 0
A13: n | B13: 0.128
A14: avil | B14: =IF(B10<100000,0.011,IF(B10>=500000,0.005,0.008)) -> 0.011
A15: evil | B15: 2.5
A16: gCO2,i (kg/GJ) | C16: =VLOOKUP(C9,'4.táblázat'!$A$2:$B$19,2,0) -> 56.1 | D16: =VLOOKUP(D9,'4.táblázat'!$A$2:$B$19,2,0) -> 0 | E16: =VLOOKUP(E9,'4.táblázat'!$A$2:$B$19,2,0) -> 0 | F16: =VLOOKUP(F9,'4.táblázat'!$A$2:$B$19,2,0) -> 0 | G16: =VLOOKUP(G9,'4.táblázat'!$A$2:$B$19,2,0) -> 0 | H16: =VLOOKUP(H9,'4.táblázat'!$A$2:$B$19,2,0) -> 0 | I16: =VLOOKUP(I9,'4.táblázat'!$A$2:$B$19,2,0) -> 0 | J16: =VLOOKUP(J9,'4.táblázat'!$A$2:$B$19,2,0) -> 0 | K16: =VLOOKUP(K9,'4.táblázat'!$A$2:$B$19,2,0) -> 0 | L16: =VLOOKUP(L9,'4.táblázat'!$A$2:$B$19,2,0) -> 0 | M16: =VLOOKUP(M9,'4.táblázat'!$A$2:$B$19,2,0) -> 0 | N16: =VLOOKUP(N9,'4.táblázat'!$A$2:$B$19,2,0) -> 0 | O16: =VLOOKUP(O9,'4.táblázat'!$A$2:$B$19,2,0) -> 0 | P16: =VLOOKUP(P9,'4.táblázat'!$A$2:$B$19,2,0) -> 0
A17: ai*ei*gCO2,i*(1-bres,i) | C17: =C11*C12*C16*(1-C20) -> 30.294 | D17: =D11*D12*D16*(1-D20) -> 0 | E17: =E11*E12*E16*(1-E20) -> 0 | F17: 0 | G17: 0 | H17: 0 | I17: 0 | J17: 0 | K17: 0 | L17: 0 | M17: 0 | N17: 0 | O17: 0 | P17: 0
A18: gCO2,vil (kg/MWh) | B18: ='4.táblázat'!B20 -> 358.7
A19: T (GJ) | B19: =SUM(C19:P19) -> 21600 | C19: =C10*C12 -> 21600 | D19: =D10*D12 -> 0 | E19: =E10*E12 -> 0 | F19: 0 | G19: 0 | H19: 0 | I19: 0 | J19: 0 | K19: 0 | L19: 0 | M19: 0 | N19: 0 | O19: 0 | P19: 0
A20: bi,res | C20: =VLOOKUP(C9,'4.táblázat'!$A$1:$C$18,3,FALSE) -> 0 | D20: =VLOOKUP(D9,'4.táblázat'!$A$1:$C$18,3,FALSE) -> 0 | E20: =VLOOKUP(E9,'4.táblázat'!$A$1:$C$18,3,FALSE) -> 0 | F20: =VLOOKUP(F9,'4.táblázat'!$A$1:$C$18,3,FALSE) -> 0 | G20: =VLOOKUP(G9,'4.táblázat'!$A$1:$C$18,3,FALSE) -> 0 | H20: =VLOOKUP(H9,'4.táblázat'!$A$1:$C$18,3,FALSE) -> 0 | I20: =VLOOKUP(I9,'4.táblázat'!$A$1:$C$18,3,FALSE) -> 0 | J20: =VLOOKUP(J9,'4.táblázat'!$A$1:$C$18,3,FALSE) -> 0 | K20: =VLOOKUP(K9,'4.táblázat'!$A$1:$C$18,3,FALSE) -> 0 | L20: =VLOOKUP(L9,'4.táblázat'!$A$1:$C$18,3,FALSE) -> 0 | M20: =VLOOKUP(M9,'4.táblázat'!$A$1:$C$18,3,FALSE) -> 0 | N20: =VLOOKUP(N9,'4.táblázat'!$A$1:$C$18,3,FALSE) -> 0 | O20: =VLOOKUP(O9,'4.táblázat'!$A$1:$C$18,3,FALSE) -> 0 | P20: =VLOOKUP(P9,'4.táblázat'!$A$1:$C$18,3,FALSE) -> 0
A21: Tres (GJ) | B21: =SUM(C21:P21) -> 0 | C21: =C19*C20 -> 0 | D21: =D19*D20 -> 0 | E21: =E19*E20 -> 0 | F21: 0 | G21: 0 | H21: 0 | I21: 0 | J21: 0 | K21: 0 | L21: 0 | M21: 0 | N21: 0 | O21: 0 | P21: 0
A22: bvil,res | B22: ='4.táblázat'!C20 -> 0.0721
A23: Tvil (GJ) | B23: =B10*B14*B15 -> 1100
A24: Tvil,res (GJ) | B24: =B23*B22 -> 79.31
A25: SPF (csak hőszivattyús termelés esetén) | B25: 1
A27: A távhőrendszer primerenergia hatékonysági tényezőjének (e) kiszámítása
C32: A távhőrendszer primerenergia hatékonysági tényezőjének értéke (GJ/GJ)
C33: =1/(1-B13)*(B15*B14+SUMPRODUCT(C11:P11,C12:P12)) -> 0.6508027523
C35: A távhőrendszer primerenergia hatékonysági osztálya
C36: =IF(C33<'6.táblázat'!D2,'6.táblázat'!A2,IF(AND('6.táblázat'!B3<=C33,C33<'6.táblázat'!D3),'6.táblázat'!A3,IF(AND('6.táblázat'!B4<=C33,C33<'6.táblázat'!D4),'6.táblázat'!A4,IF(AND('6.táblázat'!B5<=C33,C33<'6.táblázat'!D5),'6.táblázat'!A5,IF(AND('6.táblázat'!B6<=C33,C33<'6.táblázat'!D6),'6.táblázat'!A6,IF(AND('6.táblázat'!B7<=C33,C33<'6.táblázat'!D7),'6.táblázat'!A7,'6.táblázat'!A8)))))) -> A+
A38: A megújuló energiaforrásokkal termelt távhő (βres) részarányának kiszámítása
C45: A távhőrendszerben megújuló energiaforrásokkal termelt távhő részaránya
C46: =(SUMPRODUCT(C11:P11,C20:P20)+B14*B22)/(1+B14) -> 0.000784470821
C48: A távhőrendszer megújuló energiaforrásokkal termelt távhő részaránya szerinti osztályba sorolása
C49: =IF(C46>'6.táblázat'!G2,'6.táblázat'!A2,IF(AND('6.táblázat'!E3>='6.táblázat'!A47,C46>'6.táblázat'!G3),'6.táblázat'!A3,IF(AND('6.táblázat'!E4>=C46,C46>'6.táblázat'!G4),'6.táblázat'!A4,IF(AND('6.táblázat'!E5>=C46,C46>'6.táblázat'!G5),'6.táblázat'!A5,IF(AND('6.táblázat'!E6>=C46,C46>'6.táblázat'!G6),'6.táblázat'!A6,IF(AND('6.táblázat'!E7>=C46,C46>'6.táblázat'!G7),'6.táblázat'!A7,'6.táblázat'!A8)))))) -> F
A51: A távhőrendszer fajlagos CO2-kibocsátásának (gco2) kiszámítása
C56: A távhőrendszer fajlagos CO2-kibocsátása (kg/GJ)
C57: =1/(1-B13)*(B14*B18/3.6+SUM(C17:P17)) -> 35.99773828
C59: A távhőrendszer fajlagos CO2-kibocsátás szerinti osztályba sorolása
C60: =IF(C57<'6.táblázat'!J2,'6.táblázat'!A2,IF(AND('6.táblázat'!H3<=C57,C57<'6.táblázat'!J3),'6.táblázat'!A3,IF(AND('6.táblázat'!H4<=C57,C57<'6.táblázat'!J4),'6.táblázat'!A4,IF(AND('6.táblázat'!H5<=C57,C57<'6.táblázat'!J5),'6.táblázat'!A5,IF(AND('6.táblázat'!H6<=C57,C57<'6.táblázat'!J6),'6.táblázat'!A6,IF(AND('6.táblázat'!H7<=C57,C57<'6.táblázat'!J7),'6.táblázat'!A7,'6.táblázat'!A8)))))) -> A+

Sheet 1.táblázat
A1: Távhőtermelő technológia | B1: Távhőtermelő technológia primerenergia-átalakítási tényezője (ei)
A2: - | B2: 0
A3: 1.Kizárólagos (nem kapcsolt) hőtermelés (fűtőmű/kazánház) - szénhidrogének (földgáz, tüzelőolaj, fűtőolaj) | B3: 1.12
A4: 2.Kizárólagos (nem kapcsolt) hőtermelés (fűtőmű/kazánház) - biogáz | B4: 1.12
A5: 3.Kizárólagos (nem kapcsolt) hőtermelés (fűtőmű/kazánház) - szénféleségek | B5: =1/0.8 -> 1.25
A6: 4.Kizárólagos (nem kapcsolt) hőtermelés (fűtőmű/kazánház) - tüzifa, faapríték, fahulladék, biobrikett, egyéb bio tüzelőanyagok | B6: =1/0.86 -> 1.162790698
A7: 5.Kizárólagos (nem kapcsolt) hőtermelés (fűtőmű/kazánház) - kommunális hulladék | B7: =1/0.82 -> 1.219512195
A8: 6.Kizárólagos (nem kapcsolt) hőtermelés (fűtőmű/kazánház) - ipari hulladékhő | B8: 0
A9: 7.Kizárólagos (nem kapcsolt) hőtermelés (fűtőmű/kazánház) - szoláris- és geotermikus energia | B9: 1
A10: 8.Nukleáris energia | B10: 1
A11: 9.Kapcsolt energiatermelés kombinált ciklusú erőművi blokkban | B11: 0.54
A12: 10.Kapcsolt energiatermelés hagyományos gőz-körfolyamatú erőművi blokkban | B12: 0.87
A13: 11.Kapcsolt energiatermelés 1.200 kWe villamos egységteljesítményt meghaladó gázmotorral | B13: 0.55
A14: 12.Kapcsolt energiatermelés 1.200 kWe villamos egységteljesítményt nem meghaladó gázmotorral | B14: 0.72
A15: 13.Kapcsolt energiatermelés hőhasznosító kazánnal ellátott gázturbinás erőműben | B15: 0.82
A16: 14.Kapcsolt energiatermelés hőszivattyúval | B16: =1/0.4/3.5 -> 0.7142857143

Sheet 2.táblázat
A1: A hőtermeléshez és primer oldali keringtetéshez felhasznált villamos energia aránya a kiadott hőmennyiségre vetítve (avil) a hőtermelő által kiadott hőmennyiség (Q /GJ/év/) függvényében
A2: Q (GJ/év) | B2: avill (GJ/GJ)
A3: Q<100.000 | B3: 0.011
A4: 100.000<=Q<500.000 | B4: 0.008
A5: 500.000=<Q | B5: 0.006

Sheet 3.táblázat
A1: Egyes primer energiaforrások, valamint a hőszivattyús hőtermelés megújuló részaránya
A2: Primer energiaforrás | B2: Megújuló részarány
B3: bres
A4: Földgáz, fűtő- és tüzelőolajok, szénféleségek, nukleáris energia | B4: 0
A5: Tűzifa, faapríték, fahulladék, biobrikett, egyéb bio tüzelőanyagok | B5: 1
A6: Biogáz, biometán | B6: 1
A7: Szoláris-, geotermikus-, szél- és vízenergia | B7: 1
A8: Kommunális hulladék | B8: 0.6
A9: Ipari hulladékhő | B9: 1
A10: Hőszivattyú | B10: 1-1/SPF*
A11: *ahol SPF a hőszivattyú átlagos szezonális fűtési tényezője

Sheet 4.táblázat
A1: Primer energiaforrások és a villamosenergia-rendszer fajlagos CO2 kibocsátási tényezői | C1: Megújuló részarány
A2: Primer energiaforrás | B2: gCO2 (kg/GJ) | C2: bres
A3: - | B3: 0 | C3: 0
A4: Szén | B4: 94.6 | C4: 0
A5: Lignit | B5: 113.2 | C5: 0
A6: Tűzifa és fahulladék, biobrikett, egyéb bio tüzelőanyagok | B6: 109.6 | C6: 1
A7: Szoláris-, geotermikus-, szél- és vízenergia | B7: 0 | C7: 1
A8: Nukleárisenergia | B8: 0 | C8: 0
A9: Ipari hulladékhő | B9: 0 | C9: 1
A10: Kommunális hulladék | B10: 90.5 | C10: 0.6
A11: Tüzelőolajok | B11: 74.1 | C11: 0
A12: Fűtőolajok | B12: 77.4 | C12: 0
A13: Földgáz | B13: 56.1 | C13: 0
A14: PB-gáz | B14: 63.1 | C14: 0
A15: Kamragáz | B15: 47.7 | C15: 0
A16: Kohógáz | B16: 242 | C16: 0
A17: Biogáz | B17: 54.9 | C17: 1
A18: Hőszivattyú esetén | C18: 1-1/SPF*
B19: gCO2 (kg/MWh)
A20: Villamosenergia-rendszer (Pakssal)* | B20: 358.7 | C20: 0.0721
A22: * Források: Magyar Energetika 2017/1. A MAGYAR VILLAMOSENERGIA-RENDSZER (VER) 2015. ÉVI ADATAI, MEKH, MAVIR

Sheet 6.táblázat
A1: Osztály | B1: e | E1: bRes | H1: gCO2
A2: A+ | C2: e< | D2: 0.94 | F2: bRes> | G2: 0.293 | I2: gCO2< | J2: 40.4
A3: A | B3: 0.94 | C3: ≤e< | D3: 1.03 | E3: 0.293 | F3: ³bRes> | G3: 0.1905 | H3: 40.4 | I3: ≤gCO2< | J3: 47.1
A4: B | B4: 1.03 | C4: ≤e< | D4: 1.11 | E4: 0.1905 | F4: ³bRes> | G4: 0.1465 | H4: 47.1 | I4: ≤gCO2< | J4: 53.9
A5: C | B5: 1.11 | C5: ≤e< | D5: 1.2 | E5: 0.1465 | F5: ³bRes> | G5: 0.1172 | H5: 53.9 | I5: ≤gCO2< | J5: 67.3
A6: D | B6: 1.2 | C6: ≤e< | D6: 1.29 | E6: 0.1172 | F6: ³bRes> | G6: 0.0879 | H6: 67.3 | I6: ≤gCO2< | J6: 77.4
A7: E | B7: 1.29 | C7: ≤e< | D7: 1.37 | E7: 0.0879 | F7: ³bRes> | G7: 0.044 | H7: 77.4 | I7: ≤gCO2< | J7: 87.5
A8: F | B8: 1.37 | C8: ≤e | E8: 0.044 | F8: ³bRes | H8: 87.5 | I8: ≤gCO2
